lending/lending_fUSD_20240603
["ID","MTS","AMOUNT","RATE_DAILY","PERIOD"]
[328486289,1717438232753,-5576.36890792,0.00017125,2]
[328486290,1717438232762,-4286.86690961,0.00017126,2]
[328486291,1717438232771,-7075.69120649,0.00017126,2]
[328486292,1717438232783,-3451.78082831,0.00017126,2]
[328486293,1717438232792,-1300.83954334,0.00017127,2]
[328486295,1717438232802,-499.99,0.00017127,2]
[328486297,1717438232811,-309.95173145,0.00017246,2]
[328486299,1717438232820,-241.30909122,0.00019451,2]
[328486301,1717438232829,-155.4,0.00024384,2]
[328486302,1717438232838,-158.75,0.00024384,2]
[328486303,1717438232847,-1275.18335769,0.00028861,2]
[328486304,1717438232857,-377.6,0.00028862,2]
[328486305,1717438232866,-150.0,0.00029042,2]
[328486306,1717438232875,-6148.47338391,0.00029068,2]
[328486307,1717438232885,-210.0,0.0002908,2]
[328486308,1717438232895,-157.18089411,0.00029401,2]
[328486309,1717438232904,-250.0,0.00029593,2]
[328486310,1717438232914,-210.0,0.0002961,2]
[328486311,1717438232923,-452.72561266,0.00029635,2]
[328486313,1717438232932,-1000.0,0.00029808,2]
[328486314,1717438232941,-166.78687987,0.00030022,7]
[328486315,1717438232950,-157.18089411,0.00030103,7]
[328486316,1717438232960,-210.0,0.0003014,2]
[328486317,1717438232970,-600.0,0.0003057,2]
[328486318,1717438232979,-171.15,0.00030625,2]
[328486319,1717438232989,-210.0,0.0003066,2]
[328486320,1717438232998,-1000.0,0.00031,2]
[328486321,1717438233007,-1000.0,0.00031,2]
[328486322,1717438233017,-400.0,0.00031,2]
[328486323,1717438233027,-250.19792259,0.00031,2]
[328486324,1717438233038,-151.0,0.00031061,2]
[328486325,1717438233047,-377.6,0.00031126,2]
[328486326,1717438233056,-210.0,0.0003119,2]
[328486327,1717438233065,-166.3,0.00031489,120]
[328486328,1717438233074,-302.0,0.00031583,4]
[328486329,1717438233083,-180.28170636,0.00031633,4]
[328486330,1717438233093,-1297.39517737,0.00031633,4]
[328486331,1717438233101,-221.0,0.0003172,2]
[328486332,1717438233111,-210.0,0.0003172,2]
[328486333,1717438233119,-600.0,0.00031844,2]
[328486334,1717438233128,-1000.0,0.00032,2]
[328486335,1717438233138,-1101.40879581,0.00032,3]
[328486336,1717438233149,-1000.0,0.00032,9]
[328486337,1717438233158,-1000.0,0.00032,8]
[328486338,1717438233167,-1002.0,0.00032,8]
[328486339,1717438233176,-604.0,0.00032114,7]
[328486340,1717438233185,-206.0,0.000322,8]
[328486341,1717438233194,-800.0,0.00032219,2]
[328486342,1717438233204,-221.0,0.0003224,2]
[328486343,1717438233213,-210.0,0.0003224,2]
[328486344,1717438233222,-690.0,0.00032301,2]
[328486345,1717438233232,-562.0,0.00032301,2]
[328486346,1717438233240,-492.0,0.00032306,3]
[328486347,1717438233250,-495.43,0.000325,5]
[328486348,1717438233259,-1009.0,0.000325,9]
[328486349,1717438233269,-1000.0,0.000325,9]
[328486350,1717438233279,-1000.0,0.000325,9]
[328486351,1717438233288,-1000.0,0.000325,9]
[328486352,1717438233298,-690.0,0.00032634,2]
[328486353,1717438233307,-117.40189525,0.00032634,2]
[328486354,1717438233320,-444.59810475,0.00032634,2]
[328486355,1717438233329,-150.0,0.00032728,2]
[328486356,1717438233339,-476.5,0.0003274,2]
[328486357,1717438233349,-221.0,0.0003277,2]
[328486358,1717438233358,-210.0,0.0003277,2]
[328486359,1717438233367,-156.52660351,0.00032778,7]
[328486360,1717438233376,-588.99337165,0.00032876,13]
[328486361,1717438233385,-155.4310936,0.00032876,13]
[328486362,1717438233394,-325.0,0.000329,2]
[328486363,1717438233403,-1208.0,0.00032927,30]
[328486364,1717438233412,-192.05,0.0003296,3]
[328486365,1717438233421,-252.94668078,0.00032965,4]
[328486366,1717438233429,-690.0,0.00032967,2]
[328486367,1717438233439,-562.0,0.00032967,2]
[328486368,1717438233447,-15855.8085595,0.0003297,2]
[328486369,1717438233456,-576.16,0.0003299,3]
[328486370,1717438233465,-150.0,0.00033,2]
[328486371,1717438233475,-280.0,0.00033,2]
[328486372,1717438233484,-150.0,0.00033028,2]
[328486373,1717438233493,-500.0,0.00033033,10]
[328486374,1717438233502,-259.5516274,0.00033035,2]
[328486375,1717438233511,-150.0,0.00033039,2]
[328486376,1717438233521,-150.0,0.00033057,2]
[328486377,1717438233530,-150.0,0.00033062,2]
[328486378,1717438233539,-150.0,0.00033064,2]
[328486379,1717438233548,-382.01150973,0.00033064,2]
[328486380,1717438233557,-185.0,0.0003308,20]
[328486381,1717438233566,-150.0,0.00033084,2]
[328486382,1717438233575,-150.0,0.00033089,2]
[328486383,1717438233585,-150.0,0.0003309,2]
[328486384,1717438233595,-150.0,0.00033099,2]
[328486385,1717438233604,-150.0,0.00033099,2]
[328486386,1717438233615,-150.0,0.000331,2]
[328486387,1717438233625,-150.0,0.00033117,2]
[328486388,1717438233637,-300.0,0.00033118,2]
[328486389,1717438233647,-150.0,0.00033121,2]
[328486390,1717438233655,-150.0,0.00033123,2]
[328486391,1717438233666,-150.0,0.00033127,2]
[328486392,1717438233675,-150.0,0.00033131,2]
[328486393,1717438233684,-1000.0,0.00033133,2]
[328486394,1717438233693,-1125.1996,0.00033133,2]
[328486395,1717438233705,-150.0,0.00033138,2]
[328486396,1717438233716,-1830.0,0.00033142,2]
[328486397,1717438233725,-150.0,0.00033142,2]
[328486398,1717438233734,-1500.0,0.00033142,2]
[328486399,1717438233743,-150.0,0.00033146,2]
[328486400,1717438233753,-150.0,0.00033151,2]
[328486401,1717438233762,-150.0,0.00033164,2]
[328486402,1717438233771,-600.0,0.00033171,2]
[328486403,1717438233781,-150.0,0.00033171,2]
[328486404,1717438233790,-24358.32119558,0.00033177,7]
[328486405,1717438234438,-3848.79344519,0.00033177,7]
[328486407,1717438238387,-154.77,0.0003277,20]
[328486409,1717438238398,-46541.76347371,0.00033177,7]
[328486411,1717438238503,-19578.45038552,0.00033177,7]
[328486412,1717438238515,-174.1821,0.00033177,2]
[328486413,1717438238525,-150.0,0.00033185,2]
[328486414,1717438238535,-150.0,0.00033186,2]
[328486415,1717438238546,-150.0,0.00033192,2]
[328486416,1717438238556,-218.82879996,0.00033194,2]
[328486417,1717438238566,-150.0,0.00033195,2]
[328486418,1717438238576,-1449.7921,0.00033195,2]
[328486419,1717438238586,-218.82879993,0.00033196,2]
[328486420,1717438238596,-218.82879993,0.00033197,2]
[328486421,1717438238606,-218.82879993,0.00033199,2]
[328486422,1717438238616,-150.23572813,0.000332,5]
[328486423,1717438238627,-218.82879993,0.000332,2]
[328486424,1717438238640,-165.42920419,0.000332,5]
[328486425,1717438238650,-197.87473693,0.000332,2]
[328486426,1717438238659,-1007.26,0.000332,2]
[328486427,1717438238669,-150.0,0.000332,7]
[328486428,1717438238678,-1052.72,0.00033205,2]
[328486429,1717438238688,-150.0,0.00033229,2]
[328486430,1717438238698,-150.0,0.00033233,2]
[328486431,1717438238707,-150.0,0.00033245,2]
[328486432,1717438238717,-150.0,0.00033273,2]
[328486433,1717438238727,-150.0,0.00033274,2]
[328486434,1717438238738,-5630.494803,0.00033277,2]
[328486435,1717438238748,-4374.0130068,0.00033277,2]
[328486436,1717438238758,-3117.5312107,0.00033277,2]
[328486437,1717438238767,-1861.0494145,0.00033277,2]
[328486438,1717438238781,-604.5676183,0.00033277,2]
[328486439,1717438238791,-67667.6172283,0.00033277,2]
[328486440,1717438238802,-56306.9907835,0.00033277,2]
[328486441,1717438238812,-44946.3643388,0.00033277,2]
[328486442,1717438238822,-33585.7378941,0.00033277,2]
[328486443,1717438238832,-22225.1114493,0.00033277,2]
[328486444,1717438238842,-3792.2536717,0.00033277,2]
[328486445,1717438238852,-3155.577236,0.00033277,2]
[328486446,1717438238862,-2518.9008003,0.00033277,2]
[328486448,1717438238872,-1882.2243646,0.00033277,2]
[328486449,1717438238882,-1245.5479289,0.00033277,2]
[328486450,1717438238892,-150.0,0.00033284,2]
[328486451,1717438238902,-150.0,0.00033285,2]
[328486452,1717438238912,-525.57,0.00033288,2]
[328486453,1717438238922,-150.0,0.00033288,2]
[328486454,1717438238931,-223.78,0.00033288,2]
[328486455,1717438238941,-151.75,0.00033288,2]
[328486456,1717438238951,-352.88,0.00033288,2]
[328486457,1717438238960,-206.8572319,0.00033288,2]
[328486458,1717438238970,-206.8572319,0.0003329,2]
[328486459,1717438238980,-206.8572319,0.0003329,2]
[328486461,1717438238989,-150.84,0.0003329,2]
[328486463,1717438238999,-150.84,0.0003329,2]
[328486465,1717438239009,-150.84,0.0003329,2]
[328486467,1717438239019,-150.84,0.0003329,2]
[328486470,1717438239030,-150.84,0.0003329,2]
[328486472,1717438239040,-150.84,0.0003329,2]
[328486473,1717438239050,-150.84,0.0003329,2]
[328486476,1717438239061,-150.84,0.0003329,2]
[328486478,1717438239071,-150.84,0.0003329,2]
[328486480,1717438239081,-150.84,0.0003329,2]
[328486482,1717438239091,-150.84,0.0003329,2]
[328486483,1717438239101,-150.84,0.0003329,2]
[328486485,1717438239111,-150.84,0.0003329,2]
[328486487,1717438239121,-150.84,0.0003329,2]
[328486490,1717438239132,-150.84,0.0003329,2]
[328486491,1717438239142,-150.84,0.0003329,2]
[328486494,1717438239153,-150.84,0.0003329,2]
[328486495,1717438239163,-150.84,0.0003329,2]
[328486497,1717438239173,-150.84,0.0003329,2]
[328486500,1717438239182,-150.84,0.0003329,2]
[328486502,1717438239192,-150.84,0.0003329,2]
[328486503,1717438239202,-150.84,0.0003329,2]
[328486506,1717438239212,-150.84,0.0003329,2]
[328486507,1717438239222,-150.84,0.0003329,2]
[328486510,1717438239234,-150.84,0.0003329,2]
[328486512,1717438239243,-150.84,0.0003329,2]
[328486514,1717438239253,-150.84,0.0003329,2]
[328486516,1717438239264,-150.84,0.0003329,2]
[328486518,1717438239275,-150.84,0.0003329,2]
[328486520,1717438239285,-150.84,0.0003329,2]
[328486522,1717438239295,-150.84,0.0003329,2]
[328486524,1717438239306,-150.84,0.0003329,2]
[328486526,1717438239316,-150.84,0.0003329,2]
[328486529,1717438239326,-150.84,0.0003329,2]
[328486531,1717438239335,-150.84,0.0003329,2]
[328486533,1717438239346,-150.84,0.0003329,2]
[328486535,1717438239356,-150.84,0.0003329,2]
[328486537,1717438239366,-150.84,0.0003329,2]
[328486539,1717438239375,-150.84,0.0003329,2]
[328486541,1717438239384,-150.84,0.0003329,2]
[328486543,1717438239394,-150.84,0.0003329,2]
[328486545,1717438239404,-150.84,0.0003329,2]
[328486547,1717438239414,-150.84,0.0003329,2]
[328486549,1717438239423,-150.84,0.0003329,2]
[328486551,1717438239433,-150.84,0.0003329,2]
[328486553,1717438239442,-150.84,0.0003329,2]
[328486555,1717438239452,-150.84,0.0003329,2]
[328486557,1717438239463,-150.84,0.0003329,2]
[328486559,1717438239473,-150.84,0.0003329,2]
[328486561,1717438239482,-150.84,0.0003329,2]
[328486563,1717438239492,-150.84,0.0003329,2]
[328486565,1717438239501,-150.84,0.0003329,2]
[328486567,1717438239511,-150.84,0.0003329,2]
[328486569,1717438239520,-150.84,0.0003329,2]
[328486571,1717438239530,-150.84,0.0003329,2]
[328486573,1717438239541,-150.84,0.0003329,2]
[328486575,1717438239551,-150.84,0.0003329,2]
[328486577,1717438239561,-150.84,0.0003329,2]
[328486579,1717438239572,-150.84,0.0003329,2]
[328486581,1717438239582,-150.84,0.0003329,2]
[328486583,1717438239593,-150.84,0.0003329,2]
[328486585,1717438239603,-150.84,0.0003329,2]
[328486587,1717438239614,-150.84,0.0003329,2]
[328486589,1717438239625,-150.84,0.0003329,2]
[328486591,1717438239640,-150.84,0.0003329,2]
[328486593,1717438239651,-150.84,0.0003329,2]
[328486595,1717438239660,-150.84,0.0003329,2]
[328486597,1717438239671,-150.84,0.0003329,2]
[328486599,1717438239680,-150.84,0.0003329,2]
[328486601,1717438239690,-150.84,0.0003329,2]
[328486602,1717438239700,-150.84,0.0003329,2]
[328486603,1717438239710,-150.84,0.0003329,2]
[328486604,1717438239720,-150.84,0.0003329,2]
[328486605,1717438239731,-150.84,0.0003329,2]
[328486606,1717438239741,-150.84,0.0003329,2]
[328486607,1717438239751,-150.84,0.0003329,2]
[328486608,1717438239760,-150.84,0.0003329,2]
[328486609,1717438239769,-150.84,0.0003329,2]
[328486611,1717438239779,-500.0,0.00033293,13]
[328486613,1717438239788,-500.0,0.00033293,13]
[328486615,1717438239798,-500.0,0.00033293,13]
[328486617,1717438239808,-500.0,0.00033293,13]
[328486619,1717438239818,-477.5,0.00033293,13]
[328486621,1717438239828,-500.0,0.00033293,13]
[328486623,1717438239837,-632.58,0.00033293,13]
[328486625,1717438239847,-535.5541103,0.00033294,4]
[328486627,1717438239857,-425.88007825,0.00033294,13]
[328486629,1717438239866,-500.0,0.00033294,13]
[328486631,1717438239875,-500.0,0.00033294,13]
[328486633,1717438239885,-500.0,0.00033294,13]
[328486635,1717438239894,-500.0,0.00033294,13]
[328486637,1717438239904,-500.0,0.00033294,13]
[328486639,1717438239913,-500.0,0.00033294,13]
[328486641,1717438239923,-500.0,0.00033294,13]
[328486643,1717438239933,-500.0,0.00033294,13]
[328486645,1717438239942,-500.0,0.00033294,13]
[328486647,1717438239951,-400.76,0.00033294,13]
[328486649,1717438239960,-500.0,0.00033294,13]
[328486651,1717438239970,-500.0,0.00033294,13]
[328486653,1717438239979,-374.45999999,0.00033294,13]
[328486654,1717438239989,-6886.9765992,0.00033295,2]
[328486655,1717438239999,-489.81743088,0.00033298,4]
[328486656,1717438240009,-156.26376304,0.00033298,4]
[328486657,1717438240019,-155.0,0.00033298,4]
[328486658,1717438240035,-155.795999,0.00033298,4]
[328486659,1717438240045,-150.01,0.00033298,2]
[328486660,1717438240055,-1181.7656568,0.00033298,4]
[328486661,1717438240064,-155.0,0.00033298,4]
[328486662,1717438240074,-229.23409016,0.00033298,4]
[328486663,1717438240083,-4501.66673496,0.00033298,4]
[328486664,1717438240093,-263.45707997,0.00033298,4]
[328486665,1717438240103,-205.30156829,0.00033298,4]
[328486666,1717438240113,-474.9516767,0.00033298,4]
[328486667,1717438240123,-1000.0,0.00033298,4]
[328486668,1717438240134,-2333.31828049,0.00033298,4]
[328486669,1717438240144,-157.00352454,0.00033298,4]
[328486670,1717438240154,-211.918934,0.00033298,4]
[328486671,1717438240164,-155.0,0.00033298,4]
[328486672,1717438240174,-209.15588465,0.00033298,4]
[328486673,1717438240184,-364.96719133,0.00033298,4]
[328486674,1717438240197,-1033.09664876,0.00033298,4]
[328486675,1717438240207,-156.44858283,0.00033298,4]
[328486676,1717438240217,-536.91822658,0.00033298,4]
[328486677,1717438240227,-5285.56169332,0.00033298,4]
[328486678,1717438240238,-155.0,0.00033298,4]
[328486679,1717438240247,-1814.36692199,0.00033298,2]
[328486680,1717438240257,-155.0,0.00033298,4]
[328486681,1717438240267,-1381.93423711,0.00033298,4]
[328486682,1717438240276,-158.14534676,0.00033298,4]
[328486683,1717438240286,-155.0,0.00033298,4]
[328486684,1717438240295,-307.04081651,0.00033298,4]
[328486685,1717438240305,-155.0,0.00033298,2]
[328486686,1717438240314,-155.0,0.00033298,4]
[328486687,1717438240324,-237.41199557,0.00033298,4]
[328486688,1717438240335,-193.48784992,0.00033298,4]
[328486689,1717438240344,-356.24209533,0.00033298,2]
[328486690,1717438240354,-850.11730473,0.00033298,4]
[328486692,1717438240365,-268.08947108,0.00033298,4]
[328486694,1717438240375,-319.39260741,0.00033298,4]
[328486696,1717438240385,-155.0,0.00033298,4]
[328486698,1717438240395,-271.53784341,0.00033298,4]
[328486699,1717438240407,-10958.61118027,0.00033298,4]
[328486700,1717438240421,-351.92,0.00033298,4]
[328486701,1717438240437,-2966.75250665,0.00033298,4]
[328486702,1717438240447,-176.26985716,0.00033298,4]
[328486703,1717438240457,-1215.04784894,0.00033298,4]
[328486704,1717438240467,-155.0,0.00033298,4]
[328486705,1717438240477,-1567.3326992,0.00033298,4]
[328486706,1717438240489,-689.11,0.00033298,4]
[328486707,1717438240502,-1121.0,0.00033298,4]
[328486708,1717438240514,-7230.68848721,0.00033298,4]
[328486709,1717438240524,-2188.02281065,0.00033298,4]
[328486710,1717438240534,-155.0,0.00033298,4]
[328486711,1717438240543,-201.6612582,0.00033298,4]
[328486712,1717438240554,-410.08555038,0.00033298,4]
[328486713,1717438240564,-155.60940046,0.00033298,4]
[328486714,1717438240574,-624.3999277,0.00033298,4]
[328486715,1717438240584,-150.0,0.00033298,2]
[328486716,1717438240594,-1369.14148522,0.00033298,4]
[328486717,1717438240604,-4632.30233501,0.00033298,2]
[328486718,1717438240614,-295.31883888,0.00033298,4]
[328486719,1717438240624,-1049.21880249,0.00033298,2]
[328486720,1717438240637,-785.21960307,0.00033298,2]
[328486721,1717438240646,-155.50433289,0.00033298,4]
[328486722,1717438240658,-2094.94336796,0.00033298,4]
[328486723,1717438240668,-2366.03746575,0.00033298,4]
[328486724,1717438240681,-155.49613903,0.00033298,4]
[328486725,1717438240690,-155.32666268,0.00033298,4]
[328486726,1717438240700,-3412.08366268,0.00033298,10]
[328486727,1717438240710,-2227.75244418,0.00033298,14]
[328486728,1717438240720,-1793.01820727,0.00033298,4]
[328486729,1717438240732,-4162.82948756,0.00033298,4]
[328486730,1717438240742,-541.55577053,0.00033298,4]
[328486731,1717438240752,-1898.91513286,0.00033299,4]
[328486732,1717438240762,-1413.71069631,0.00033299,30]
[328486733,1717438240772,-254.52205176,0.00033299,7]
[328486734,1717438240782,-4324.9942,0.00033299,2]
[328486735,1717438240792,-415.71935121,0.00033299,7]
[328486736,1717438240802,-178.16543623,0.00033299,7]
[328486737,1717438240811,-361.52432461,0.00033299,7]
[328486738,1717438240821,-378.3977362,0.00033299,7]
[328486739,1717438240831,-7717.85775693,0.00033299,10]
[328486740,1717438240840,-500.0,0.00033299,13]
[328486741,1717438240850,-448.44,0.00033299,13]
[328486742,1717438240859,-500.0,0.00033299,13]
[328486743,1717438240869,-549.64234848,0.00033299,13]
[328486744,1717438240879,-500.0,0.00033299,13]
[328486745,1717438240888,-160.78,0.00033299,13]
[328486746,1717438240898,-1300.33741,0.00033299,2]
[328486747,1717438240910,-500.0,0.00033299,13]
[328486748,1717438240919,-500.0,0.00033299,13]
[328486749,1717438240928,-500.0,0.00033299,13]
[328486750,1717438240938,-500.0,0.00033299,13]
[328486751,1717438240948,-500.0,0.00033299,13]
[328486752,1717438240958,-500.0,0.00033299,13]
[328486753,1717438240967,-500.0,0.00033299,13]
[328486754,1717438240977,-500.0,0.00033299,13]
[328486755,1717438240986,-500.0,0.00033299,13]
[328486756,1717438240996,-500.0,0.00033299,13]
[328486757,1717438241006,-500.0,0.00033299,13]
[328486758,1717438241015,-500.0,0.00033299,13]
[328486759,1717438241025,-500.0,0.00033299,13]
[328486760,1717438241035,-500.0,0.00033299,13]
[328486761,1717438241045,-500.0,0.00033299,13]
[328486762,1717438241054,-623.26,0.00033299,13]
[328486764,1717438241064,-301.06982426,0.00033299,13]
[328486766,1717438241073,-500.0,0.00033299,13]
[328486767,1717438241083,-500.0,0.00033299,13]
[328486768,1717438241092,-500.0,0.00033299,13]
[328486769,1717438241102,-500.0,0.00033299,13]
[328486770,1717438241111,-500.0,0.00033299,13]
[328486771,1717438241120,-500.0,0.00033299,13]
[328486772,1717438241130,-162.1,0.00033299,13]
[328486773,1717438241139,-500.0,0.00033299,13]
[328486774,1717438241149,-500.0,0.00033299,13]
[328486775,1717438241159,-500.0,0.00033299,13]
[328486776,1717438241169,-602.46,0.00033299,13]
[328486778,1717438241178,-43358.80822792,0.000333,13]
[328486780,1717438241188,-347877.42253932,0.000333,5]
[328486781,1717438241200,-3053.35631407,0.000333,5]
[328486782,1717438241223,-23000.0,0.000333,5]
[328486783,1717438241235,-33236.02784164,0.000333,5]
[328486784,1717438241248,-12129.45933,0.000333,5]
[328486785,1717438241261,-1970.55414138,0.000333,5]
[328486786,1717438241339,-134618.2379285,0.000333,5]
[328486787,1717438241352,-361.32,0.000333,5]
[328486788,1717438241363,-432.917,0.000333,5]
[328486789,1717438241374,-21926.65605613,0.000333,5]
[328486790,1717438241434,-1708.38516005,0.000333,5]
[328486791,1717438241446,-5769.8362805,0.000333,5]
[328486792,1717438241460,-17803.25000001,0.000333,5]
[328486793,1717438242198,-695.38021361,0.000333,5]
[328486794,1717438242315,-22300.782624,0.000333,5]
[328486846,1717438243634,-150.01,0.00033298,2]
[328486847,1717438243646,-1738.76830024,0.00033298,2]
[328486848,1717438243656,-1383545.80055072,0.000333,5]
[328486849,1717438243867,-15333.74077937,0.000333,5]
[328486850,1717438243879,-4580.3856386,0.000333,5]
[328486862,1717438244081,-6043.05282773,0.000333,5]
[328486864,1717438244093,-43519.37059172,0.000333,5]
[328486868,1717438246797,-226.51830624,0.000201,2]
[328486869,1717438246810,-1713.29817732,0.00033298,4]
[328486870,1717438246821,-960.25598453,0.00033298,15]
[328486871,1717438246831,-2000.09259381,0.00033299,4]
[328486872,1717438246841,-680.00464969,0.00033299,4]
[328486873,1717438246851,-2243.49952368,0.00033299,4]
[328486874,1717438246864,-165.78396101,0.00033299,4]
[328486875,1717438246874,-392.14423628,0.000333,5]
[328487050,1717438253509,2000.0,0.00031,30]
[328487052,1717438522257,-1247.89177736,0.00011597,2]
[328487053,1717438522280,-531.5763,0.00011598,2]
[328487054,1717438643633,289.58953642,0.00011598,2]
[328487057,1717438958241,-677.947979,0.00017082,2]
[328487058,1717438958262,-307.06708735,0.00017169,2]
[328487059,1717438958283,-2367.97259469,0.0001717,2]
[328487060,1717438958302,-10527.4720348,0.0001717,2]
[328487061,1717438958322,-855.65609833,0.0001717,2]
[328487062,1717438958342,-3348.00292037,0.00017171,2]
[328487063,1717438958362,-150.0,0.00017257,2]
[328487064,1717438958383,-940.66738669,0.00017259,2]
[328487065,1717438958403,-4755.14039967,0.00017259,2]
[328487066,1717438958424,-210.0,0.00018983,2]
[328487067,1717438958444,-226.51830624,0.000201,2]
[328487068,1717438958464,-5779.3046602,0.00021897,2]
[328487069,1717438958484,-1300.0,0.000219,3]
[328487070,1717438958505,-155.11,0.00024384,2]
[328487071,1717438958527,-392.46,0.00028051,2]
[328487072,1717438958547,-157.18089413,0.00029624,2]
[328487073,1717438958567,-250.0,0.00029717,2]
[328487074,1717438958587,-161.76,0.00029849,2]
[328487075,1717438958606,-150.0,0.00029934,2]
[328487076,1717438970153,226.51830624,0.00024974,2]
[328487077,1717438988158,226.51830624,0.00024974,2]
[328487078,1717439008167,226.51830624,0.00024974,2]
[328487079,1717439011923,1170.0,0.000231,3]
[328487080,1717439012682,1053.0,0.000231,3]
[328487081,1717439026962,226.51830624,0.00024974,2]
[328487088,1717439284761,3184.01,0.00017259,2]
[328487118,1717439431798,-1868.82130973,0.00017259,2]
[328487119,1717439431807,-855.65609833,0.00024383,2]
[328487120,1717439431817,-159.61,0.00024384,2]
[328487121,1717439431827,-153.50092122,0.00029657,2]
[328487122,1717439431836,-322.89,0.00029865,2]
[328487123,1717439431845,-392.46,0.00030315,2]
[328487124,1717439431854,-166.66666665,0.00030704,7]
[328487125,1717439431864,-150.0,0.00031192,7]
[328487126,1717439431873,-150.0,0.0003145,2]
[328487127,1717439431882,-200.0,0.00031546,2]
[328487128,1717439431891,-551.24,0.00031605,2]
[328487129,1717439431900,-166.3,0.00031606,120]
[328487130,1717439431910,-23900.0,0.00031636,2]
[328487131,1717439431918,-602.11,0.00031911,2]
[328487132,1717439431929,-563.16,0.00031913,2]
[328487133,1717439431938,-448.64,0.00031944,2]
[328487134,1717439431947,-800.0,0.00032019,2]
[328487135,1717439431959,-151.83882975,0.00032396,7]
[328487136,1717439431968,-392.46,0.00032579,2]
[328487137,1717439431977,-253.3183729,0.00032965,4]
[328487138,1717439431986,-1560.40489,0.0003297,2]
[328487139,1717439431995,-500.0,0.00033033,10]
[328487140,1717439432004,-2291.97541818,0.00033041,2]
[328487141,1717439432016,-13279.02458182,0.00033041,2]
[328487142,1717439432025,-510.07295708,0.00033061,2]
[328487143,1717439432035,-1000.0,0.00033077,2]
[328487144,1717439432045,-41402.3819,0.00033177,2]
[328487145,1717439432055,-4749.473,0.00033177,2]
[328487147,1717439432064,-705.3818,0.00033198,2]
[328487149,1717439432074,-186.62713376,0.00033198,5]
[328487151,1717439432082,-320.21783406,0.00033198,2]
[328487153,1717439432092,-252.87027778,0.000332,5]
[328487155,1717439432103,-1139.89156899,0.000332,5]
[328487157,1717439432114,-1258.92552577,0.000332,5]
[328487160,1717439432128,-230.5579777,0.000332,5]
[328487162,1717439432137,-864.63344476,0.000332,5]
[328487164,1717439432152,-1940.07293871,0.000332,5]
[328487166,1717439432162,-1000.02,0.000332,2]
[328487168,1717439432171,-239.24604195,0.000332,2]
[328487170,1717439432181,-150.0,0.000332,7]
[328487172,1717439432191,-615.28646326,0.00033205,3]
[328487236,1717439437733,-150.55289131,0.00033198,2]
[328487237,1717439437743,-320.21783405,0.000332,2]
[328487238,1717439437753,-437.43353674,0.00033205,3]
[328487239,1717439437762,-384.1,0.00033267,3]
[328487240,1717439437771,-10041.53637414,0.00033277,2]
[328487241,1717439437783,-7104.95822816,0.00033277,2]
[328487242,1717439437793,-14496.4141644,0.00033277,2]
[328487243,1717439437802,-3489.54760744,0.00033277,2]
[328487244,1717439437813,-2993.83081291,0.00033277,2]
[328487245,1717439437825,-5362.95530625,0.00033277,2]
[328487246,1717439437834,-9196.2532887,0.00033277,2]
[328487247,1717439437844,-3071.66173766,0.00033277,2]
[328487248,1717439437877,-907.87201028,0.00033277,2]
[328487249,1717439437889,-2566.63910296,0.00033277,2]
[328487250,1717439437898,-960.9302023,0.00033277,2]
[328487251,1717439437907,-812.4134127,0.00033277,2]
[328487252,1717439437916,-663.8966231,0.00033277,2]
[328487253,1717439437926,-515.3798335,0.00033277,2]
[328487254,1717439437938,-366.8630439,0.00033277,2]